[Event "The Schackveckan 2023: Göteborg open"]
[Site "Göteborgs schackcentrum, Vegagatan 20, Gothenburg, Sweden"]
[Date "2023.08.13"]
[Round "7.5"]
[White "Eriksson, Kristian"]
[Black "Degerfeldt, Sven"]
[Result "1/2-1/2"]
[TimeControl "15 minutes + 5 seconds per move from move one (Round 1 - 4) / 90 minutes + 30 seconds per move from move one (Round 5 - 8)"]
[WhiteFideId "1705172"]
[BlackFideId "1717430"]
[WhiteElo "2057"]
[BlackElo "1821"]

1. e4 {[%clk 01:30:56]} {[%emt 00:00:04]} c5 {[%clk 01:27:19]} {[%emt
00:03:41]} 2. Nc3 {[%clk 01:30:38]} {[%emt 00:00:47]} e6 {[%clk 01:27:46]}
{[%emt 00:00:03]} 3. Nf3 {[%clk 01:30:53]} {[%emt 00:00:16]} a6 {[%clk
01:27:44]} {[%emt 00:00:33]} 4. d4 {[%clk 01:30:14]} {[%emt 00:01:08]} cxd4
{[%clk 01:27:37]} {[%emt 00:00:38]} 5. Nxd4 {[%clk 01:30:37]} {[%emt 00:00:06]}
Nc6 {[%clk 01:27:57]} {[%emt 00:00:11]} 6. Nxc6 {[%clk 01:28:55]} {[%emt
00:02:13]} bxc6 {[%clk 01:28:18]} {[%emt 00:00:09]} 7. Bd3 {[%clk 01:29:12]}
{[%emt 00:00:12]} d5 {[%clk 01:28:35]} {[%emt 00:00:13]} 8. O-O {[%clk
01:29:09]} {[%emt 00:00:33]} Nf6 {[%clk 01:25:03]} {[%emt 00:04:01]} 9. e5
{[%clk 01:21:17]} {[%emt 00:08:22]} Nd7 {[%clk 01:25:24]} {[%emt 00:00:09]} 10.
Bf4 {[%clk 01:20:56]} {[%emt 00:00:51]} Be7 {[%clk 01:25:31]} {[%emt 00:00:24]}
11. Na4 {[%clk 01:15:27]} {[%emt 00:05:58]} Qc7 {[%clk 01:02:39]} {[%emt
00:23:23]} 12. Re1 {[%clk 01:14:15]} {[%emt 00:01:41]} c5 {[%clk 01:02:36]}
{[%emt 00:00:34]} 13. c4 {[%clk 01:13:18]} {[%emt 00:01:27]} d4 {[%clk
01:02:33]} {[%emt 00:00:32]} 14. Be4 {[%clk 01:08:55]} {[%emt 00:04:52]} Bb7
{[%clk 01:02:28]} {[%emt 00:00:36]} 15. Bxb7 {[%clk 01:02:31]} {[%emt
00:06:54]} Qxb7 {[%clk 01:02:42]} {[%emt 00:00:17]} 16. b3 {[%clk 00:58:52]}
{[%emt 00:04:09]} O-O {[%clk 01:01:30]} {[%emt 00:01:42]} 17. Nb2 {[%clk
00:56:19]} {[%emt 00:03:03]} Rfd8 {[%clk 00:59:30]} {[%emt 00:02:29]} 18. Qg4
{[%clk 00:53:12]} {[%emt 00:03:37]} Nf8 {[%clk 00:54:13]} {[%emt 00:05:47]} 19.
h4 {[%clk 00:51:12]} {[%emt 00:02:30]} Ng6 {[%clk 00:52:19]} {[%emt 00:02:24]}
20. Bg3 {[%clk 00:50:05]} {[%emt 00:01:37]} Bf8 {[%clk 00:52:23]} {[%emt
00:00:25]} 21. Nd3 {[%clk 00:47:38]} {[%emt 00:02:58]} Qc6 {[%clk 00:51:42]}
{[%emt 00:01:11]} 22. h5 {[%clk 00:45:09]} {[%emt 00:03:04]} Ne7 {[%clk
00:51:35]} {[%emt 00:00:33]} 23. Bh4 {[%clk 00:41:25]} {[%emt 00:04:13]} Rd7
{[%clk 00:51:36]} {[%emt 00:00:30]} 24. Bxe7 {[%clk 00:38:10]} {[%emt
00:03:43]} Bxe7 {[%clk 00:51:32]} {[%emt 00:00:35]} 25. Re4 {[%clk 00:33:04]}
{[%emt 00:05:37]} a5 {[%clk 00:48:03]} {[%emt 00:03:58]} 26. Nb2 {[%clk
00:26:45]} {[%emt 00:06:49]} Rad8 {[%clk 00:43:11]} {[%emt 00:05:21]} 27. Rd1
{[%clk 00:26:51]} {[%emt 00:00:26]} d3 {[%clk 00:38:11]} {[%emt 00:05:30]} 28.
h6 {[%clk 00:11:45]} {[%emt 00:15:35]} g6 {[%clk 00:38:24]} {[%emt 00:00:17]}
29. Rd2 {[%clk 00:11:45]} {[%emt 00:00:31]} Bf8 {[%clk 00:38:34]} {[%emt
00:00:19]} 30. Qf3 {[%clk 00:10:08]} {[%emt 00:02:07]} Bxh6 {[%clk 00:36:10]}
{[%emt 00:02:54]} 31. Rxd3 {[%clk 00:10:28]} {[%emt 00:00:10]} Rxd3 {[%clk
00:36:30]} {[%emt 00:00:09]} 32. Nxd3 {[%clk 00:10:54]} {[%emt 00:00:05]} Bf8
{[%clk 00:35:09]} {[%emt 00:01:51]} 33. Re3 {[%clk 00:09:18]} {[%emt 00:02:07]}
Qd7 {[%clk 00:34:02]} {[%emt 00:01:37]} 34. Qe4 {[%clk 00:08:50]} {[%emt
00:00:57]} Qc7 {[%clk 00:27:55]} {[%emt 00:06:37]} 35. Qf3 {[%clk 00:06:17]}
{[%emt 00:03:03]} Rd4 {[%clk 00:27:30]} {[%emt 00:00:56]} 36. Re4 {[%clk
00:06:05]} {[%emt 00:00:42]} Qd7 {[%clk 00:26:51]} {[%emt 00:01:08]} 37. Rxd4
{[%clk 00:05:59]} {[%emt 00:00:36]} Qxd4 {[%clk 00:27:18]} {[%emt 00:00:03]} 38.
Qe2 {[%clk 00:05:27]} {[%emt 00:01:02]} Be7 {[%clk 00:25:35]} {[%emt 00:02:13]}
39. g3 {[%clk 00:05:12]} {[%emt 00:00:44]} h5 {[%clk 00:24:16]} {[%emt
00:01:50]} 40. Kg2 {[%clk 00:04:21]} {[%emt 00:01:22]} h4 {[%clk 00:23:11]}
{[%emt 00:01:34]} 41. Qe3 {[%clk 00:03:59]} {[%emt 00:00:52]} Qxe3 {[%clk
00:22:13]} {[%emt 00:01:28]} 42. fxe3 {[%clk 00:04:27]} {[%emt 00:00:02]} hxg3
{[%clk 00:22:14]} {[%emt 00:00:29]} 43. Kxg3 {[%clk 00:04:52]} {[%emt
00:00:06]} Kf8 {[%clk 00:22:16]} {[%emt 00:00:27]} 44. Nf2 {[%clk 00:04:08]}
{[%emt 00:01:13]} Ke8 {[%clk 00:21:24]} {[%emt 00:01:23]} 45. Ne4 {[%clk
00:03:49]} {[%emt 00:00:49]} Kd7 {[%clk 00:21:13]} {[%emt 00:00:41]} 46. Kg4
{[%clk 00:03:42]} {[%emt 00:00:37]} Kc6 {[%clk 00:15:39]} {[%emt 00:06:04]} 47.
Kf4 {[%clk 00:03:58]} {[%emt 00:00:14]} Kd7 {[%clk 00:15:02]} {[%emt 00:01:08]}
48. Kg4 {[%clk 00:04:18]} {[%emt 00:00:08]} Kc6 {[%clk 00:13:17]} {[%emt
00:02:16]} 49. Kf4 {[%clk 00:04:41]} {[%emt 00:00:08]} a4 {[%emt 00:02:28]} 50.
bxa4 {[%emt 00:00:03]} Kb6 {[%emt 00:00:02]} 1/2-1/2

[Event "The Schackveckan 2023: Göteborg open"]
[Site "Göteborgs schackcentrum, Vegagatan 20, Gothenburg, Sweden"]
[Date "2023.08.13"]
[Round "7.6"]
[White "Sandberg, Lucas"]
[Black "Wengholm, Anders"]
[Result "0-1"]
[TimeControl "15 minutes + 5 seconds per move from move one (Round 1 - 4) / 90 minutes + 30 seconds per move from move one (Round 5 - 8)"]
[WhiteFideId "1773712"]
[BlackFideId "1704818"]
[WhiteElo "1311"]
[BlackElo "2155"]

1. d4 {[%clk 01:30:58]} {[%emt 00:00:02]} d5 {[%clk 01:30:29]} {[%emt
00:00:31]} 2. c4 {[%clk 01:31:19]} {[%emt 00:00:10]} e6 {[%clk 01:30:12]}
{[%emt 00:00:47]} 3. Nc3 {[%clk 01:31:38]} {[%emt 00:00:11]} c6 {[%clk
01:26:02]} {[%emt 00:04:40]} 4. Nf3 {[%clk 01:29:55]} {[%emt 00:02:12]} dxc4
{[%clk 01:21:47]} {[%emt 00:04:46]} 5. a4 {[%clk 01:29:02]} {[%emt 00:01:23]}
Bb4 {[%clk 01:21:20]} {[%emt 00:00:57]} 6. Ne5 {[%clk 01:27:38]} {[%emt
00:01:54]} b5 {[%clk 01:11:24]} {[%emt 00:10:25]} 7. e3 {[%clk 01:24:02]}
{[%emt 00:04:06]} Nf6 {[%clk 01:11:29]} {[%emt 00:00:25]} 8. Bd2 {[%clk
01:23:19]} {[%emt 00:01:14]} Bb7 {[%clk 01:10:12]} {[%emt 00:01:47]} 9. Qf3
{[%clk 01:20:48]} {[%emt 00:03:00]} Qc7 {[%clk 01:05:58]} {[%emt 00:04:45]} 10.
e4 {[%clk 01:10:54]} {[%emt 00:10:23]} a6 {[%clk 00:48:29]} {[%emt 00:18:00]}
11. Bh6 {[%clk 01:09:58]} {[%emt 00:01:25]} O-O {[%clk 00:47:17]} {[%emt
00:01:43]} 12. Ng4 {[%clk 01:08:22]} {[%emt 00:02:06]} Nxg4 {[%clk 00:47:07]}
{[%emt 00:00:40]} 13. Qxg4 {[%clk 01:07:51]} {[%emt 00:01:00]} f5 {[%clk
00:47:00]} {[%emt 00:00:37]} 14. Bf4 {[%clk 01:05:37]} {[%emt 00:02:45]} e5
{[%clk 00:47:08]} {[%emt 00:00:21]} 0-1

[Event "The Schackveckan 2023: Göteborg open"]
[Site "Göteborgs schackcentrum, Vegagatan 20, Gothenburg, Sweden"]
[Date "2023.08.13"]
[Round "7.7"]
[White "Johansson, William"]
[Black "Ottgard, Andreas"]
[Result "0-1"]
[TimeControl "15 minutes + 5 seconds per move from move one (Round 1 - 4) / 90 minutes + 30 seconds per move from move one (Round 5 - 8)"]
[WhiteFideId "1744070"]
[BlackFideId "1730592"]
[WhiteElo "2052"]
[BlackElo "1874"]

1. e4 {[%clk 01:30:57]} {[%emt 00:00:02]} d6 {[%clk 01:24:03]} {[%emt
00:06:58]} 2. d4 {[%clk 01:31:16]} {[%emt 00:00:11]} Nf6 {[%clk 01:24:29]}
{[%emt 00:00:04]} 3. Nc3 {[%clk 01:31:39]} {[%emt 00:00:06]} g6 {[%clk
01:24:54]} {[%emt 00:00:06]} 4. Be3 {[%clk 01:32:04]} {[%emt 00:00:05]} c6
{[%clk 01:25:13]} {[%emt 00:00:11]} 5. a4 {[%clk 01:32:10]} {[%emt 00:00:25]}
Qa5 {[%clk 01:19:28]} {[%emt 00:06:14]} 6. f3 {[%clk 01:25:05]} {[%emt
00:07:35]} Nbd7 {[%clk 01:17:44]} {[%emt 00:02:14]} 7. Nge2 {[%clk 01:23:08]}
{[%emt 00:02:26]} Bg7 {[%clk 01:10:13]} {[%emt 00:08:02]} 8. g4 {[%clk
01:21:39]} {[%emt 00:01:59]} h5 {[%clk 01:02:19]} {[%emt 00:08:24]} 9. g5
{[%clk 01:21:42]} {[%emt 00:00:27]} Ng8 {[%clk 00:58:32]} {[%emt 00:04:17]} 10.
Kf2 {[%clk 01:18:16]} {[%emt 00:03:56]} e6 {[%clk 00:53:30]} {[%emt 00:05:32]}
11. Bh3 {[%clk 01:01:06]} {[%emt 00:17:39]} Ne7 {[%clk 00:52:36]} {[%emt
00:01:25]} 12. Rf1 {[%clk 00:59:09]} {[%emt 00:02:27]} Qc7 {[%clk 00:41:47]}
{[%emt 00:11:19]} 13. f4 {[%clk 00:52:06]} {[%emt 00:07:32]} f5 {[%clk
00:39:55]} {[%emt 00:02:22]} 14. gxf6 {[%clk 00:48:33]} {[%emt 00:04:04]} Nxf6
{[%clk 00:40:04]} {[%emt 00:00:21]} 15. Kg1 {[%clk 00:41:52]} {[%emt 00:07:10]}
Bd7 {[%clk 00:37:19]} {[%emt 00:03:16]} 16. Qd3 {[%clk 00:36:49]} {[%emt
00:05:32]} Ng4 {[%clk 00:33:35]} {[%emt 00:04:14]} 17. Bxg4 {[%clk 00:35:42]}
{[%emt 00:01:38]} hxg4 {[%clk 00:34:02]} {[%emt 00:00:02]} 18. Ng3 {[%clk
00:24:55]} {[%emt 00:11:18]} O-O-O {[%clk 00:29:54]} {[%emt 00:04:38]} 19. Nd1
{[%clk 00:19:49]} {[%emt 00:05:35]} Rdf8 {[%clk 00:22:16]} {[%emt 00:08:09]} 20.
c3 {[%clk 00:16:46]} {[%emt 00:03:33]} Kb8 {[%clk 00:20:51]} {[%emt 00:01:54]}
21. a5 {[%clk 00:14:47]} {[%emt 00:02:30]} e5 {[%clk 00:19:43]} {[%emt
00:01:37]} 22. dxe5 {[%clk 00:13:31]} {[%emt 00:01:47]} dxe5 {[%clk 00:19:51]}
{[%emt 00:00:23]} 23. Bc5 {[%clk 00:13:32]} {[%emt 00:00:28]} Nc8 {[%clk
00:17:16]} {[%emt 00:03:04]} 24. Bxf8 {[%clk 00:13:40]} {[%emt 00:00:23]} Bxf8
{[%clk 00:15:42]} {[%emt 00:02:05]} 25. f5 {[%clk 00:13:14]} {[%emt 00:00:55]}
gxf5 {[%clk 00:14:29]} {[%emt 00:01:43]} 26. Nxf5 {[%clk 00:12:30]} {[%emt
00:01:14]} Bxf5 {[%clk 00:14:10]} {[%emt 00:00:50]} 27. Rxf5 {[%clk 00:12:18]}
{[%emt 00:00:41]} Bc5+ {[%clk 00:14:26]} {[%emt 00:00:14]} 28. Nf2 {[%clk
00:11:22]} {[%emt 00:01:25]} Rh3 {[%clk 00:05:55]} {[%emt 00:09:02]} 29. Qe2
{[%clk 00:09:12]} {[%emt 00:02:40]} Qh7 {[%clk 00:02:35]} {[%emt 00:03:49]} 30.
b4 {[%clk 00:04:04]} {[%emt 00:05:39]} Rxh2 {[%clk 00:02:43]} {[%emt 00:00:21]}
31. bxc5 {[%clk 00:03:43]} {[%emt 00:00:51]} g3 {[%clk 00:02:42]} 0-1

[Event "The Schackveckan 2023: Göteborg open"]
[Site "Göteborgs schackcentrum, Vegagatan 20, Gothenburg, Sweden"]
[Date "2023.08.13"]
[Round "7.8"]
[White "Harila, Per"]
[Black "Granath, Jonas"]
[Result "0-1"]
[TimeControl "15 minutes + 5 seconds per move from move one (Round 1 - 4) / 90 minutes + 30 seconds per move from move one (Round 5 - 8)"]
[WhiteFideId "1707248"]
[BlackFideId "1761013"]
[WhiteElo "2016"]
[BlackElo "1896"]

1. d4 {[%clk 01:30:55]} {[%emt 00:00:04]} d5 {[%clk 01:30:54]} {[%emt
00:00:07]} 2. c4 {[%clk 01:30:44]} {[%emt 00:00:41]} e6 {[%clk 01:31:12]}
{[%emt 00:00:11]} 3. Nc3 {[%clk 01:30:58]} {[%emt 00:00:17]} c5 {[%clk
01:31:24]} {[%emt 00:00:18]} 4. cxd5 {[%clk 01:30:32]} {[%emt 00:00:57]} cxd4
{[%clk 01:31:40]} {[%emt 00:00:13]} 5. Qa4+ {[%clk 01:30:05]} {[%emt 00:00:57]}
Bd7 {[%clk 01:31:53]} {[%emt 00:00:17]} 6. Qxd4 {[%clk 01:30:31]} {[%emt
00:00:04]} exd5 {[%clk 01:32:07]} {[%emt 00:00:16]} 7. Qxd5 {[%clk 01:30:24]}
{[%emt 00:00:37]} Nf6 {[%clk 01:32:28]} {[%emt 00:00:08]} 8. Qb3 {[%clk
01:30:43]} {[%emt 00:00:11]} Na6 {[%clk 01:32:34]} {[%emt 00:00:25]} 9. Nf3
{[%clk 01:27:56]} {[%emt 00:03:17]} Nc5 {[%clk 01:32:25]} {[%emt 00:00:39]} 10.
Qc2 {[%clk 01:28:09]} {[%emt 00:00:14]} Rc8 {[%clk 01:32:39]} {[%emt 00:00:19]}
11. Bg5 {[%clk 01:28:10]} {[%emt 00:00:29]} Na4 {[%clk 01:25:26]} {[%emt
00:07:43]} 12. g3 {[%clk 01:25:15]} {[%emt 00:03:25]} Bb4 {[%clk 01:15:28]}
{[%emt 00:10:28]} 13. Bxf6 {[%clk 01:24:12]} {[%emt 00:01:33]} Qxf6 {[%clk
01:14:18]} {[%emt 00:01:39]} 14. Qe4+ {[%clk 01:24:23]} {[%emt 00:00:19]} Qe7
{[%clk 01:14:23]} {[%emt 00:00:25]} 15. Qxe7+ {[%clk 01:24:16]} {[%emt
00:00:37]} Kxe7 {[%clk 01:14:40]} {[%emt 00:00:14]} 16. Nd2 {[%clk 01:18:45]}
{[%emt 00:06:01]} Nxc3 {[%clk 01:11:26]} {[%emt 00:03:43]} 17. bxc3 {[%clk
01:19:13]} {[%emt 00:00:03]} Rxc3 {[%clk 01:10:15]} {[%emt 00:01:41]} 18. Bg2
{[%clk 01:15:11]} {[%emt 00:04:32]} Rc2 {[%clk 01:09:14]} {[%emt 00:01:30]} 19.
Rd1 {[%clk 01:15:39]} {[%emt 00:00:03]} Rhc8 {[%clk 01:08:17]} {[%emt
00:01:26]} 20. Be4 {[%clk 01:15:03]} {[%emt 00:01:07]} Rxd2 {[%clk 01:07:59]}
{[%emt 00:00:49]} 21. Rxd2 {[%clk 01:15:31]} {[%emt 00:00:01]} Rc1# {[%clk
01:08:27]} {[%emt 00:00:02]} 0-1

[Event "The Schackveckan 2023: Göteborg open"]
[Site "Göteborgs schackcentrum, Vegagatan 20, Gothenburg, Sweden"]
[Date "2023.08.13"]
[Round "7.9"]
[White "Yang, Mandi"]
[Black "Andersson, Stig"]
[Result "1-0"]
[TimeControl "15 minutes + 5 seconds per move from move one (Round 1 - 4) / 90 minutes + 30 seconds per move from move one (Round 5 - 8)"]
[WhiteFideId "1774778"]
[BlackFideId "1731971"]
[WhiteElo "1457"]
[BlackElo "1811"]

1. e4 {[%clk 01:30:58]} e5 {[%clk 01:30:41]} {[%emt 00:00:19]} 2. Nf3 {[%clk
01:31:25]} {[%emt 00:00:04]} Nc6 {[%clk 01:30:58]} {[%emt 00:00:13]} 3. c3
{[%clk 01:31:36]} {[%emt 00:00:19]} Be7 {[%clk 01:29:45]} {[%emt 00:01:43]} 4.
d4 {[%clk 01:31:56]} {[%emt 00:00:11]} d6 {[%clk 01:29:28]} {[%emt 00:00:46]} 5.
d5 {[%clk 01:31:27]} {[%emt 00:01:00]} Nb8 {[%clk 01:29:23]} {[%emt 00:00:33]}
6. Bd3 {[%clk 01:31:21]} {[%emt 00:00:37]} Nf6 {[%clk 01:28:55]} {[%emt
00:00:59]} 7. h3 {[%clk 01:31:32]} {[%emt 00:00:19]} c6 {[%clk 01:26:18]}
{[%emt 00:03:06]} 8. c4 {[%clk 01:31:44]} {[%emt 00:00:19]} Na6 {[%clk
01:24:20]} {[%emt 00:02:27]} 9. Nc3 {[%clk 01:31:45]} {[%emt 00:00:30]} Nc5
{[%clk 01:23:50]} {[%emt 00:00:59]} 10. b4 {[%clk 01:31:13]} {[%emt 00:01:02]}
Nxd3+ {[%clk 01:24:04]} {[%emt 00:00:15]} 11. Qxd3 {[%clk 01:31:32]} {[%emt
00:00:12]} O-O {[%clk 01:24:13]} {[%emt 00:00:21]} 12. O-O {[%clk 01:31:27]}
{[%emt 00:00:36]} Qc7 {[%clk 01:23:33]} {[%emt 00:01:09]} 13. Be3 {[%clk
01:31:10]} {[%emt 00:00:47]} Rd8 {[%clk 01:23:47]} {[%emt 00:00:16]} 14. Rac1
{[%clk 01:29:45]} {[%emt 00:01:55]} Bd7 {[%clk 01:21:42]} {[%emt 00:02:35]} 15.
Rfd1 {[%clk 01:26:27]} {[%emt 00:03:48]} b6 {[%clk 01:19:50]} {[%emt 00:02:22]}
16. dxc6 {[%clk 01:15:47]} {[%emt 00:11:10]} Bxc6 {[%clk 01:18:41]} {[%emt
00:01:39]} 17. Nd5 {[%clk 01:09:26]} {[%emt 00:06:51]} Bxd5 {[%clk 01:16:05]}
{[%emt 00:03:06]} 18. cxd5 {[%clk 01:09:37]} {[%emt 00:00:19]} Qd7 {[%clk
01:16:19]} {[%emt 00:00:15]} 19. Rc6 {[%clk 01:07:42]} {[%emt 00:02:26]} Rdc8
{[%clk 01:15:10]} {[%emt 00:01:39]} 20. Rdc1 {[%clk 01:06:03]} {[%emt
00:02:10]} Ne8 {[%clk 01:14:02]} {[%emt 00:01:37]} 21. Ne1 {[%clk 01:00:23]}
{[%emt 00:06:10]} Rc7 {[%clk 01:12:36]} {[%emt 00:01:56]} 22. b5 {[%clk
00:55:00]} {[%emt 00:05:54]} Bd8 {[%clk 01:09:04]} {[%emt 00:04:01]} 23. Nc2
{[%clk 00:53:32]} {[%emt 00:01:58]} Rxc6 {[%clk 01:04:34]} {[%emt 00:05:01]} 24.
dxc6 {[%clk 00:53:26]} {[%emt 00:00:36]} Qe7 {[%clk 01:04:45]} {[%emt
00:00:16]} 25. Nb4 {[%clk 00:53:39]} {[%emt 00:00:20]} Nc7 {[%clk 01:04:53]}
{[%emt 00:00:21]} 26. a4 {[%clk 00:53:40]} {[%emt 00:00:29]} Rb8 {[%clk
01:03:56]} {[%emt 00:01:27]} 27. Rd1 {[%clk 00:53:22]} {[%emt 00:00:48]} Ne8
{[%clk 01:03:35]} {[%emt 00:00:51]} 28. Nd5 {[%clk 00:51:32]} {[%emt 00:02:20]}
Qe6 {[%clk 00:59:05]} {[%emt 00:04:58]} 29. Bc1 {[%clk 00:48:28]} {[%emt
00:03:37]} Rc8 {[%clk 00:53:02]} {[%emt 00:06:31]} 30. Ba3 {[%clk 00:48:21]}
{[%emt 00:00:38]} g6 {[%clk 00:48:43]} {[%emt 00:04:49]} 31. Ne3 {[%clk
00:40:44]} {[%emt 00:08:07]} Be7 {[%clk 00:45:48]} {[%emt 00:03:21]} 32. Nc4
{[%clk 00:37:16]} {[%emt 00:04:02]} Rd8 {[%clk 00:43:25]} {[%emt 00:02:53]} 33.
Ne3 {[%clk 00:30:40]} {[%emt 00:07:07]} Rc8 {[%clk 00:42:24]} {[%emt 00:01:29]}
34. Qc4 {[%clk 00:26:39]} {[%emt 00:04:32]} Kg7 {[%clk 00:38:22]} {[%emt
00:04:32]} 35. Qb4 {[%clk 00:25:53]} {[%emt 00:01:17]} Bd8 {[%clk 00:35:53]}
{[%emt 00:02:58]} 36. Nc4 {[%clk 00:25:32]} {[%emt 00:00:51]} Bc7 {[%clk
00:34:33]} {[%emt 00:01:50]} 37. a5 {[%clk 00:24:44]} {[%emt 00:01:18]} Ra8
{[%clk 00:30:24]} {[%emt 00:04:39]} 38. axb6 {[%clk 00:23:54]} {[%emt
00:01:21]} axb6 {[%clk 00:28:57]} {[%emt 00:01:56]} 39. Qc3 {[%clk 00:22:11]}
{[%emt 00:02:13]} Ra4 {[%clk 00:27:27]} {[%emt 00:02:00]} 40. Bb4 {[%clk
00:21:45]} {[%emt 00:00:57]} f6 {[%clk 00:24:20]} {[%emt 00:03:37]} 41. Qb3
{[%clk 00:22:07]} {[%emt 00:00:08]} Ra7 {[%clk 00:23:51]} {[%emt 00:00:58]} 42.
Qd3 {[%clk 00:19:38]} {[%emt 00:02:58]} Ra8 {[%clk 00:17:27]} {[%emt 00:06:55]}
43. Qd5 {[%clk 00:17:36]} {[%emt 00:02:32]} Kf7 {[%clk 00:09:01]} {[%emt
00:08:56]} 44. Qxe6+ {[%clk 00:04:45]} {[%emt 00:13:21]} Kxe6 {[%clk 00:08:23]}
{[%emt 00:01:08]} 45. Ne3 {[%clk 00:04:14]} {[%emt 00:01:01]} Ra4 {[%clk
00:06:25]} {[%emt 00:02:28]} 46. Nd5 {[%clk 00:04:32]} {[%emt 00:00:12]} Bd8
{[%clk 00:03:46]} {[%emt 00:03:09]} 47. Bxd6 {[%clk 00:03:54]} {[%emt
00:01:08]} Nxd6 {[%clk 00:03:28]} {[%emt 00:00:49]} 48. c7 {[%clk 00:04:09]}
{[%emt 00:00:15]} Bxc7 {[%clk 00:03:33]} {[%emt 00:00:25]} 49. Nxc7+ {[%clk
00:04:33]} {[%emt 00:00:05]} Kd7 {[%clk 00:03:02]} {[%emt 00:01:01]} 50. Nd5
{[%clk 00:04:54]} {[%emt 00:00:09]} Ke6 {[%clk 00:02:56]} {[%emt 00:00:36]} 51.
Nxb6 {[%clk 00:04:18]} {[%emt 00:01:07]} Rb4 {[%clk 00:02:40]} {[%emt
00:00:44]} 52. Nd5 {[%clk 00:04:18]} {[%emt 00:00:31]} Rxe4 {[%clk 00:01:56]}
{[%emt 00:01:14]} 53. Nxf6 {[%clk 00:02:03]} {[%emt 00:02:45]} Rb4 {[%clk
00:02:19]} {[%emt 00:00:07]} 54. Nxh7 {[%clk 00:02:14]} {[%emt 00:00:20]} Nxb5
{[%clk 00:02:04]} {[%emt 00:00:45]} 55. Ng5+ {[%clk 00:02:01]} {[%emt
00:00:42]} Kf5 {[%clk 00:02:07]} {[%emt 00:00:26]} 56. Nf3 {[%clk 00:02:14]}
{[%emt 00:00:18]} Nd4 {[%clk 00:01:56]} {[%emt 00:00:42]} 57. Nxd4+ {[%clk
00:01:45]} {[%emt 00:00:59]} Rxd4 {[%clk 00:02:18]} {[%emt 00:00:07]} 58. Rxd4
{[%clk 00:01:21]} {[%emt 00:00:55]} exd4 {[%clk 00:02:46]} {[%emt 00:00:01]} 59.
Kf1 {[%clk 00:01:42]} {[%emt 00:00:09]} Ke4 {[%clk 00:02:09]} {[%emt 00:01:06]}
60. Ke2 {[%clk 00:02:07]} {[%emt 00:00:06]} d3+ {[%clk 00:01:26]} {[%emt
00:01:12]} 61. Kd2 {[%clk 00:02:11]} {[%emt 00:00:27]} Kd4 {[%clk 00:01:37]}
{[%emt 00:00:19]} 62. f3 {[%clk 00:02:00]} {[%emt 00:00:41]} g5 {[%clk
00:01:50]} {[%emt 00:00:17]} 63. g3 {[%clk 00:02:10]} {[%emt 00:00:21]} Kc4
{[%clk 00:02:13]} {[%emt 00:00:06]} 64. h4 {[%clk 00:01:58]} {[%emt 00:00:43]}
gxh4 {[%clk 00:02:26]} {[%emt 00:00:17]} 65. gxh4 {[%clk 00:02:24]} {[%emt
00:00:03]} Kd4 {[%clk 00:02:10]} {[%emt 00:00:46]} 66. h5 {[%clk 00:02:48]}
{[%emt 00:00:07]} Ke5 {[%clk 00:02:32]} {[%emt 00:00:07]} 67. Kxd3 {[%clk
00:03:11]} {[%emt 00:00:07]} Kf5 {[%clk 00:02:45]} {[%emt 00:00:17]} 68. Kd4
{[%clk 00:03:09]} {[%emt 00:00:33]} Kg5 {[%clk 00:03:01]} {[%emt 00:00:13]} 69.
Ke5 {[%clk 00:03:24]} {[%emt 00:00:15]} Kxh5 {[%clk 00:03:22]} {[%emt
00:00:09]} 70. Kf6 {[%clk 00:03:20]} {[%emt 00:00:34]} 1-0